bitfinex/quotes_SOLUSD_20240711
["timestamp","ask_amount","ask_price","bid_price","bid_amount"]
[1720736903542,0.8437497,137.08,137.07,69.74]
[1720736909338,0.8437497,137.08,137.07,91.72]
[1720736909529,0.8437497,137.08,137.07,107.5564]
[1720736910337,7.2906,137.17,137.15,10.0]
[1720736910534,7.2906,137.17,137.16,45.0]
[1720736910929,21.6906,137.17,137.16,45.0]
[1720736911360,21.6906,137.17,137.15,45.0]
[1720736911663,20.0,137.16,137.15,45.0]
[1720736912160,20.0,137.16,137.15,55.0]
[1720736913557,16.1649,137.19,137.15,55.0]
[1720736913754,30.5649,137.19,137.16,10.0]
[1720736913961,30.5649,137.19,137.17,45.0]
[1720736914171,16.1649,137.19,137.17,45.0]
[1720736914457,23.4541,137.19,137.17,45.0]
[1720736914829,7.2896,137.18,137.17,45.0]
[1720736915251,21.6896,137.18,137.17,45.0]
[1720736915458,14.4,137.18,137.13,10.0]
[1720736915653,21.6913,137.15,137.13,10.0]
[1720736916163,20.0,137.18,137.11,10.0]
[1720736916164,7.2923,137.13,137.11,10.0]
[1720736916353,7.2928,137.12,137.11,10.0]
[1720736916671,21.6925,137.13,137.11,10.0]
[1720736916839,21.692,137.14,137.11,10.0]
[1720736917164,20.0,137.13,137.11,10.0]
[1720736917335,27.2924,137.13,137.1,10.0]
[1720736917540,41.6924,137.13,137.1,10.0]
[1720736920161,34.4,137.13,137.1,10.0]
[1720736920865,20.0,137.13,137.1,10.0]
[1720736921062,20.0,137.13,137.11,45.0]
[1720736923471,27.2923,137.13,137.11,45.0]
[1720736923763,41.6923,137.13,137.11,45.0]
[1720736924841,20.0,137.13,137.12,20.0]
[1720736925168,20.0,137.13,137.12,45.0]
[1720736925464,20.0,137.13,137.11,45.0]
[1720736926449,20.0,137.14,137.11,45.0]
[1720736927166,34.4,137.14,137.11,45.0]
[1720736927956,20.0,137.14,137.12,20.0]
[1720736928144,20.0,137.14,137.13,45.0]
[1720736930262,20.0,137.14,137.13,45.34]
[1720736930943,20.0,137.15,137.14,20.0]
[1720736931150,20.0,137.15,137.14,65.0]
[1720736931851,20.0,137.15,137.14,65.17]
[1720736932166,21.6897,137.18,137.16,10.0]
[1720736932467,20.0,137.17,137.16,10.0]
[1720736932659,7.2893,137.19,137.17,45.0]
[1720736933554,7.2896,137.18,137.17,45.0]
[1720736933858,21.6896,137.18,137.17,45.0]
[1720736934268,41.6896,137.18,137.17,45.0]
[1720736936580,34.4,137.18,137.12,10.0]
[1720736936768,21.691,137.16,137.13,10.0]
[1720736937073,20.0,137.15,137.14,10.0]
[1720736937749,27.2913,137.15,137.13,10.0]
[1720736937950,7.2918,137.14,137.11,10.0]
[1720736938255,14.4,137.14,137.11,10.0]
[1720736938464,20.0,137.15,137.13,10.0]
[1720736938665,20.0,137.15,137.14,10.0]
[1720736939372,20.0,137.15,137.14,55.0]
[1720736939966,20.0,137.15,137.14,45.0]
[1720736940270,34.4,137.15,137.13,45.0]
[1720736940462,41.6914,137.15,137.13,45.0]
[1720736940675,20.0,137.15,137.12,10.0]
[1720736940871,20.0,137.15,137.1,10.0]
[1720736940872,14.4,137.13,137.1,10.0]
[1720736941053,27.2913,137.15,137.12,10.0]
[1720736941257,41.6913,137.15,137.12,10.0]
[1720736941471,34.4,137.15,137.12,10.0]
[1720736942061,41.6913,137.15,137.12,10.0]
[1720736942263,7.2918,137.14,137.13,45.0]
[1720736942461,41.6918,137.14,137.13,45.0]
[1720736944682,41.6918,137.14,137.1,20.0]
[1720736944983,41.6924,137.13,137.11,45.0]
[1720736945461,14.4,137.12,137.11,45.0]
[1720736946061,20.0,137.13,137.11,45.0]
[1720736946062,34.4,137.13,137.11,45.0]
[1720736946260,14.4,137.12,137.08,10.0]
[1720736946459,14.4,137.1,137.08,10.0]
[1720736947377,20.0,137.11,137.1,10.0]
[1720736947758,20.0,137.11,137.08,34.4]
[1720736947954,41.6928,137.12,137.09,45.0]
[1720736949361,34.4,137.12,137.09,45.0]
[1720736949576,41.6932,137.12,137.09,45.0]
[1720736949980,14.4,137.11,137.09,45.0]
[1720736950286,20.0,137.1,137.09,45.0]
[1720736951072,34.4,137.1,137.09,45.0]
[1720736953185,20.0,137.1,137.09,45.0]
[1720736954486,41.6939,137.1,137.09,45.0]
[1720736955193,41.6939,137.1,137.06,20.0]
[1720736955383,14.4,137.09,137.07,45.0]
[1720736957089,34.4,137.1,137.07,45.0]
[1720736958001,20.0,137.1,137.08,20.0]
[1720736958196,20.0,137.11,137.09,45.0]
[1720736959772,27.2935,137.11,137.09,45.0]
[1720736959972,41.6935,137.11,137.09,45.0]
[1720736960196,34.4,137.11,137.09,45.0]
[1720736960381,20.0,137.11,137.09,45.0]
[1720736960583,18.2283,137.15,137.11,10.0]
[1720736960584,7.2913,137.15,137.11,10.0]
[1720736960796,14.4,137.14,137.12,45.0]
[1720736960996,14.4,137.15,137.12,45.0]
[1720736961280,14.4,137.15,137.12,55.0]
[1720736961696,23.6846,137.16,137.13,10.0]
[1720736961975,20.0,137.15,137.14,45.0]
[1720736962694,20.0,137.15,137.14,55.0]
[1720736962906,21.6898,137.18,137.15,10.0]
[1720736963199,7.2898,137.18,137.16,45.0]
[1720736963402,16.3937,137.19,137.17,10.0]
[1720736963587,14.4,137.19,137.18,45.0]
[1720736963995,0.8437497,137.21,137.18,45.0]
[1720736964229,14.4,137.2,137.18,45.0]
[1720736964986,21.6886,137.2,137.18,45.0]
[1720736965394,7.2886,137.2,137.18,45.0]
[1720736965701,0.8437497,137.21,137.18,45.0]
[1720736965702,41.6891,137.19,137.18,45.0]
[1720736966703,27.2891,137.19,137.18,45.0]
[1720736966887,41.6891,137.19,137.18,45.0]
[1720736968485,41.6891,137.19,137.17,45.0]
[1720736968486,7.2901,137.18,137.17,45.0]
[1720736968695,41.6901,137.18,137.17,45.0]
[1720736969091,7.2907,137.16,137.13,20.0]
[1720736969298,20.0,137.15,137.13,20.0]
[1720736969906,20.0,137.19,137.13,20.0]
[1720736970393,7.2911,137.16,137.14,45.0]
[1720736970690,20.0,137.15,137.14,45.0]
[1720736971511,34.4,137.15,137.11,20.0]
[1720736971684,14.4,137.13,137.11,20.0]
[1720736971881,21.6919,137.14,137.11,20.0]
[1720736972107,20.0,137.13,137.11,20.0]
[1720736972382,27.2924,137.13,137.11,20.0]
[1720736972588,20.0,137.13,137.11,20.0]
[1720736973112,20.0,137.15,137.14,10.0]
[1720736973297,27.2912,137.15,137.14,10.0]
[1720736973793,20.0,137.15,137.14,10.0]
[1720736974006,20.0,137.15,137.14,55.0]
[1720736975291,27.2912,137.15,137.14,45.0]
[1720736976182,20.0,137.15,137.14,55.0]
[1720736977109,27.2912,137.15,137.14,55.0]
[1720736977280,27.2912,137.15,137.14,45.0]
[1720736982204,7.2918,137.14,137.13,10.0]
[1720736982390,27.2918,137.14,137.13,10.0]
[1720736982709,20.0,137.14,137.12,10.0]
[1720736983002,20.0,137.13,137.12,10.0]
[1720736983510,20.0,137.13,137.12,55.34]
[1720736988685,7.63318558,137.2,137.18,10.0]
[1720736988887,0.8437497,137.21,137.2,10.0]
[1720736989106,0.8437497,137.21,137.2,10.34]
[1720736989625,0.8437497,137.21,137.2,32.32]
[1720736990110,7.2838,137.29,137.26,20.0]
[1720736990313,23.2374,137.32,137.27,45.0]
[1720736990483,7.2838,137.3,137.27,45.0]
[1720736990687,23.2374,137.32,137.27,45.0]
[1720736990909,7.2836,137.3,137.27,55.0]
[1720736991309,23.2374,137.32,137.27,55.0]
[1720736991489,11.34674653,137.35,137.29,10.0]
[1720736991689,7.2817,137.33,137.3,45.0]
[1720736993001,20.0,137.32,137.3,45.0]
[1720736993622,7.2827,137.32,137.28,10.0]
[1720736993801,27.2828,137.31,137.29,45.0]
[1720736994115,20.0,137.3,137.29,45.0]
[1720736994313,20.0,137.3,137.27,10.0]
[1720736994314,20.0,137.3,137.28,45.0]
[1720736994801,20.0,137.31,137.28,45.0]
[1720736995004,20.0,137.32,137.28,45.0]
[1720736995699,20.0,137.32,137.29,10.0]
[1720736995914,20.0,137.32,137.3,45.0]
[1720736996104,20.0,137.33,137.3,45.0]
[1720736998220,27.2816,137.34,137.3,45.0]
[1720737000727,20.0,137.34,137.3,45.0]
[1720737000932,20.0,137.34,137.27,10.0]
[1720737001116,7.2828,137.31,137.27,10.0]
[1720737001415,7.2828,137.31,137.26,10.0]
[1720737001416,20.0,137.3,137.25,10.0]
[1720737001600,20.0,137.3,137.29,10.0]
[1720737002307,0.8437497,137.35,137.31,10.0]
[1720737002497,0.8437497,137.35,137.33,10.0]
[1720737002926,0.8437497,137.35,137.31,10.0]
[1720737003101,0.8437497,137.35,137.32,45.0]
[1720737003404,8.1246497,137.35,137.32,45.0]
[1720737003601,20.0,137.34,137.32,45.0]
[1720737005226,20.8437497,137.35,137.32,45.0]
[1720737005940,28.1247497,137.35,137.32,45.0]
[1720737006102,7.2812,137.34,137.32,45.0]
[1720737006301,20.0,137.33,137.32,45.0]
[1720737007326,34.29,137.33,137.32,45.0]
[1720737007730,20.0,137.33,137.32,45.0]
[1720737008228,34.29,137.33,137.32,45.0]
[1720737008406,20.0,137.33,137.32,45.0]
[1720737008603,34.29,137.33,137.27,10.0]
[1720737008807,15.573,137.31,137.23,10.0]
[1720737009030,7.2863,137.25,137.22,10.0]
[1720737009334,20.0,137.24,137.2,34.29]
[1720737009938,34.29,137.24,137.2,20.0]
[1720737010120,14.29,137.21,137.16,20.0]
[1720737010311,14.29,137.21,137.16,34.29]
[1720737010517,20.0,137.2,137.16,34.29]
[1720737010840,20.0,137.2,137.16,20.0]
[1720737010841,34.29,137.2,137.16,20.0]
[1720737011802,20.0,137.2,137.18,20.0]
[1720737012109,34.29,137.22,137.18,20.0]
[1720737012308,20.0,137.22,137.18,20.0]
[1720737012612,7.2876,137.22,137.18,20.0]
[1720737012822,20.0,137.21,137.18,20.0]
[1720737013533,20.0,137.21,137.18,10.0]
[1720737013850,20.0,137.21,137.16,20.0]
[1720737014140,30.267368,137.25,137.17,45.0]
[1720737014141,7.2886,137.2,137.17,45.0]
[1720737014342,20.0,137.19,137.16,20.0]
[1720737015049,20.0,137.2,137.16,20.0]
[1720737015515,20.0,137.2,137.17,45.0]
[1720737015715,20.0,137.21,137.17,45.0]
[1720737016033,20.0,137.21,137.18,10.0]
[1720737016217,20.0,137.21,137.19,45.0]
[1720737016546,20.0,137.22,137.19,45.0]
[1720737016837,20.0,137.22,137.19,10.0]
[1720737017009,20.0,137.22,137.2,45.0]
[1720737018340,20.0,137.22,137.16,10.0]
[1720737018530,20.0,137.24,137.17,45.0]
[1720737018912,20.0,137.24,137.18,10.0]
[1720737018913,7.2876,137.22,137.18,10.0]
[1720737019117,20.0,137.21,137.19,45.0]
[1720737019448,20.0,137.24,137.19,45.0]
[1720737020147,20.0,137.24,137.2,10.0]
[1720737020349,20.0,137.24,137.21,45.0]
[1720737020738,29.9285,137.25,137.21,45.0]
[1720737020937,7.2866,137.24,137.21,45.0]
[1720737021261,7.287,137.23,137.19,10.0]
[1720737021553,7.2876,137.22,137.2,45.0]
[1720737021941,7.2876,137.22,137.19,10.0]
[1720737022158,20.0,137.21,137.16,10.0]
[1720737022328,20.0,137.24,137.15,10.17]
[1720737022534,28.63,137.22,137.15,10.17]
[1720737022734,27.2881,137.21,137.15,10.0]
[1720737023349,7.2892,137.19,137.15,10.0]
[1720737023523,20.0,137.18,137.15,10.0]
[1720737023956,27.2898,137.18,137.14,10.0]
[1720737024275,20.0,137.17,137.14,10.0]
[1720737024844,20.0,137.18,137.14,10.0]
[1720737025549,20.0,137.18,137.15,45.0]
[1720737025746,20.0,137.19,137.15,45.0]
[1720737025950,20.0,137.22,137.15,45.0]
[1720737026134,20.0,137.22,137.15,55.0]
[1720737026459,7.2882,137.21,137.16,10.0]
[1720737026654,20.0,137.2,137.17,45.0]
[1720737026837,20.0,137.2,137.18,10.0]
[1720737027038,20.0,137.2,137.17,45.0]
[1720737027255,27.2882,137.21,137.17,45.0]
[1720737027557,20.0,137.21,137.17,45.0]
[1720737027746,20.0,137.22,137.16,45.0]
[1720737027950,28.63,137.21,137.15,10.0]
[1720737028143,7.2899,137.18,137.15,10.0]
[1720737028460,20.0,137.17,137.15,10.0]
[1720737028833,20.0,137.18,137.14,10.0]
[1720737029034,20.0,137.18,137.15,45.0]
[1720737029773,20.0,137.2,137.15,45.0]
[1720737030257,27.2886,137.2,137.16,10.0]
[1720737030456,7.2893,137.19,137.15,45.0]
[1720737030665,20.0,137.18,137.15,45.0]
[1720737031353,20.0,137.19,137.15,45.0]
[1720737031544,27.289,137.2,137.15,45.0]
[1720737031966,7.2892,137.19,137.15,45.0]
[1720737032133,7.2892,137.19,137.14,10.0]
[1720737032134,20.0,137.18,137.14,10.0]
[1720737032333,20.0,137.18,137.15,10.0]
[1720737032565,20.0,137.18,137.16,45.0]
[1720737032748,20.0,137.2,137.15,45.0]
[1720737033357,20.0,137.2,137.16,10.0]
[1720737033561,7.62323113,137.22,137.18,10.0]
[1720737033746,22.6426,137.25,137.18,10.0]
[1720737033942,7.2866,137.24,137.18,10.0]
[1720737034167,22.6426,137.25,137.19,45.0]
[1720737034168,7.2872,137.23,137.19,45.0]
[1720737034346,7.2866,137.24,137.19,45.0]
[1720737034541,23.8014,137.25,137.2,10.0]
[1720737034742,7.2859,137.25,137.21,45.0]
[1720737034962,50.1649,137.28,137.22,10.0]
[1720737035138,7.285,137.27,137.23,45.0]
[1720737035868,2.99686709,137.29,137.25,10.0]
[1720737036070,7.61979462,137.3,137.26,45.0]
[1720737036238,30.60278291,137.29,137.23,10.0]
[1720737036442,7.2849,137.27,137.23,10.0]
[1720737036855,7.2849,137.27,137.21,20.0]
[1720737037055,7.2854,137.26,137.22,45.0]
[1720737037372,27.286,137.25,137.22,45.0]
[1720737037742,7.2867,137.24,137.19,35.1284]
[1720737037948,20.0,137.23,137.19,35.1284]
[1720737038153,20.0,137.23,137.2,45.0]
[1720737038838,27.2871,137.23,137.17,20.0]
[1720737039044,48.63,137.23,137.15,25.7855]
[1720737039242,7.2885,137.21,137.15,35.7855]
[1720737039447,20.0,137.2,137.15,35.7855]
[1720737039644,20.0,137.2,137.17,10.0]
[1720737040066,20.0,137.21,137.17,10.0]
[1720737040441,27.2883,137.21,137.15,35.7855]
[1720737040840,27.2883,137.21,137.16,45.0]
[1720737042966,20.0,137.21,137.17,10.0]
[1720737043176,20.0,137.24,137.19,10.0]
[1720737043544,20.0,137.24,137.2,45.0]
[1720737043750,20.0,137.24,137.17,10.17]
[1720737043751,20.0,137.24,137.17,20.0]
[1720737044046,20.0,137.24,137.18,45.0]
[1720737044565,7.2876,137.22,137.18,45.0]
[1720737044739,20.0,137.21,137.19,10.0]
[1720737044939,20.0,137.21,137.2,45.0]
[1720737045364,20.0,137.21,137.17,10.0]
[1720737045673,27.2866,137.24,137.19,10.0]
[1720737045858,27.2866,137.24,137.2,45.0]
[1720737047278,7.2871,137.23,137.2,45.0]
[1720737047449,20.0,137.22,137.2,45.0]
[1720737047774,27.288,137.22,137.19,10.0]
[1720737047949,20.0,137.22,137.17,20.0]
[1720737048144,20.0,137.24,137.18,45.0]
[1720737048453,7.2881,137.21,137.18,45.0]
[1720737048769,20.0,137.2,137.18,45.0]
[1720737049347,20.0,137.2,137.15,20.0]
[1720737049561,46.8474,137.24,137.15,10.0]
[1720737049562,28.63,137.22,137.15,10.0]
[1720737049753,7.2891,137.2,137.15,10.0]
[1720737049967,20.0,137.19,137.16,10.0]
[1720737050155,20.0,137.21,137.18,10.0]
[1720737050748,20.0,137.23,137.18,10.0]
[1720737050950,7.2876,137.22,137.18,10.0]
[1720737051149,20.0,137.21,137.18,10.0]
[1720737052572,27.2881,137.21,137.18,10.0]
[1720737052959,27.2881,137.21,137.16,20.0]
[1720737053151,7.2887,137.2,137.17,45.0]
[1720737053542,20.0,137.19,137.17,45.0]
[1720737053976,20.0,137.2,137.17,45.0]
[1720737055060,27.2886,137.2,137.17,45.0]
[1720737055462,1.97325723,137.19,137.16,10.0]
[1720737055669,20.0,137.2,137.16,10.0]
[1720737055847,7.2888,137.2,137.16,10.0]
[1720737056052,20.0,137.19,137.16,10.0]
[1720737056268,27.2891,137.19,137.16,10.0]
[1720737056956,20.0,137.19,137.16,10.0]
[1720737057271,20.0,137.2,137.16,20.0]
[1720737057488,1.97326356,137.19,137.17,45.0]
[1720737057772,20.0,137.2,137.17,45.0]
[1720737057974,1.97324924,137.19,137.17,45.0]
[1720737058161,20.0,137.2,137.17,45.0]
[1720737058357,1.97324942,137.19,137.17,45.0]
[1720737058676,20.0,137.2,137.17,45.0]
[1720737058876,7.2896,137.18,137.17,45.0]
[1720737059174,7.2893,137.19,137.17,45.0]
[1720737059472,20.0,137.18,137.17,45.0]
[1720737059890,20.0,137.18,137.16,10.0]
[1720737060090,27.2898,137.18,137.16,10.0]
[1720737060386,20.0,137.18,137.16,10.0]
[1720737060588,20.0,137.18,137.17,45.0]
[1720737061580,21.9732892,137.18,137.17,45.0]
[1720737061882,20.0,137.18,137.17,45.0]
[1720737062066,21.9732892,137.18,137.16,10.0]
[1720737062257,20.0,137.18,137.16,10.0]
[1720737062454,20.0,137.19,137.17,45.0]
[1720737062658,28.63,137.22,137.14,10.0]
[1720737062868,28.63,137.18,137.12,26.5827]
[1720737063075,7.2914,137.15,137.12,10.0]
[1720737063284,20.0,137.14,137.1,16.3842]
[1720737063788,20.0,137.14,137.1,10.0]
[1720737063969,7.2924,137.13,137.09,25.552]
[1720737064297,20.0,137.12,137.09,10.0]
[1720737064485,20.0,137.12,137.07,26.3978]
[1720737064788,27.2928,137.12,137.07,26.3978]
[1720737065149,20.0,137.12,137.07,26.3978]
[1720737065377,20.0,137.12,137.09,10.0]
[1720737065589,20.0,137.15,137.11,10.0]
[1720737065886,20.0,137.15,137.09,10.0]
[1720737066058,20.0,137.15,137.1,45.0]
[1720737066265,7.2923,137.14,137.1,45.0]
[1720737066484,20.0,137.13,137.1,45.0]
[1720737066888,27.2925,137.13,137.1,45.0]
[1720737067068,7.293,137.12,137.07,20.0]
[1720737067266,20.0,137.11,137.07,20.0]
[1720737068589,20.0,137.12,137.08,45.0]
[1720737069397,20.0,137.13,137.08,45.0]
[1720737069698,20.0,137.14,137.09,20.0]
[1720737069897,27.2918,137.14,137.1,45.0]
[1720737070981,7.2924,137.13,137.1,45.0]
[1720737071295,20.0,137.12,137.1,45.0]
[1720737072963,27.2929,137.12,137.07,20.0]
[1720737073165,7.2956,137.07,137.03,27.61939662]
[1720737073466,7.2952,137.08,137.03,27.61939662]
[1720737073771,20.0,137.07,137.03,27.61939662]
[1720737073984,7.2952,137.08,137.03,27.61939662]
[1720737074184,46.8622,137.12,137.05,10.0]
[1720737074376,7.2945,137.09,137.05,10.0]
[1720737074691,20.0,137.08,137.06,45.0]
[1720737074901,27.2951,137.08,137.06,45.0]
[1720737075595,20.0,137.08,137.05,20.0]
[1720737075769,20.0,137.09,137.05,20.0]
[1720737075964,20.0,137.1,137.05,20.0]
[1720737076268,6.5918,137.14,137.08,20.0]
[1720737076466,7.2922,137.14,137.08,20.0]
[1720737076668,22.2985,137.15,137.11,10.0]
[1720737077094,22.2985,137.15,137.1,10.0]
[1720737077389,22.2985,137.15,137.09,10.0]
[1720737077390,15.0072,137.15,137.09,10.0]
[1720737077565,7.2925,137.13,137.1,45.0]
[1720737077970,20.0,137.12,137.1,45.0]
[1720737078187,7.2934,137.11,137.09,10.0]
[1720737078399,20.0,137.1,137.09,10.0]
[1720737079090,20.0,137.1,137.07,20.0]
[1720737079270,20.0,137.11,137.07,20.0]
[1720737079672,20.0,137.14,137.09,10.0]
[1720737080080,20.0,137.14,137.07,20.0]
[1720737080279,20.0,137.14,137.08,45.0]
[1720737080472,7.2935,137.11,137.08,45.0]
[1720737080672,20.0,137.1,137.08,45.0]
[1720737080875,27.2944,137.1,137.08,45.0]
[1720737081190,27.294,137.1,137.08,45.0]
[1720737081604,20.0,137.1,137.08,45.0]
[1720737081772,7.2935,137.11,137.08,45.0]
[1720737081973,20.0,137.1,137.08,45.0]
[1720737084177,27.294,137.1,137.07,20.0]
[1720737084901,27.294,137.1,137.07,10.0]
[1720737085074,20.0,137.1,137.07,20.0]
[1720737085385,27.2934,137.11,137.07,20.0]
[1720737085978,20.0,137.11,137.07,20.0]
[1720737086204,7.2923,137.13,137.07,20.0]
[1720737086498,27.2929,137.12,137.08,45.0]
[1720737086879,20.0,137.12,137.09,10.0]
[1720737087088,10.53859409,137.17,137.11,10.0]
[1720737087286,7.62224402,137.17,137.15,20.0]
[1720737087491,7.2895,137.19,137.15,20.0]
[1720737087685,7.2895,137.19,137.16,45.0]
[1720737087880,7.2897,137.18,137.16,45.0]
[1720737088081,7.2905,137.17,137.13,36.6083]
[1720737088283,7.62081161,137.23,137.19,10.0]
[1720737088506,7.2876,137.22,137.2,45.0]
[1720737088711,7.287,137.23,137.2,45.0]
[1720737088883,7.2865,137.24,137.2,10.0]
[1720737089076,7.2865,137.24,137.21,45.0]
[1720737089497,20.0,137.23,137.21,45.0]
[1720737089702,20.0,137.23,137.2,10.0]
[1720737089903,20.0,137.25,137.2,10.0]
[1720737090201,7.2876,137.22,137.19,10.0]
[1720737090816,7.2871,137.23,137.19,10.0]
[1720737091588,20.0,137.22,137.19,10.0]
[1720737091985,20.0,137.22,137.2,10.0]
[1720737092190,20.0,137.25,137.2,55.0]
[1720737092683,20.0,137.25,137.2,45.0]
[1720737093005,7.2872,137.23,137.18,10.0]
[1720737093192,20.0,137.22,137.19,45.0]
[1720737095191,27.2876,137.22,137.16,10.0]
[1720737095395,20.0,137.22,137.15,0.17]
[1720737095609,20.0,137.22,137.15,45.17]
[1720737096010,7.2884,137.21,137.15,45.0]
[1720737096218,20.0,137.2,137.15,45.0]
[1720737096428,28.63,137.23,137.16,10.0]
[1720737096627,22.916,137.26,137.19,20.0]
[1720737096912,27.286,137.25,137.2,45.0]
[1720737097291,20.0,137.25,137.21,10.0]
[1720737097625,20.0,137.25,137.22,45.0]
[1720737098299,27.2862,137.25,137.22,45.0]
[1720737098506,27.2862,137.25,137.19,20.0]
[1720737098688,27.2862,137.25,137.2,45.0]
[1720737099615,20.0,137.25,137.21,20.0]
[1720737099813,7.2844,137.28,137.22,45.0]
[1720737099988,16.3947,137.29,137.24,10.0]
[1720737100299,23.6785,137.29,137.25,45.0]
[1720737100499,266.23633462,137.33,137.26,10.0]
[1720737100500,7.2832,137.31,137.26,10.0]
[1720737100822,7.61867467,137.32,137.26,10.0]
[1720737100991,7.2837,137.3,137.26,10.0]
[1720737101311,7.2839,137.29,137.25,45.0]
[1720737101614,7.2834,137.3,137.25,45.0]
[1720737101806,20.0,137.29,137.25,45.0]
[1720737101988,7.2834,137.3,137.25,45.0]
[1720737103414,20.0,137.29,137.25,45.0]
[1720737104216,20.0,137.31,137.25,45.0]
[1720737104398,20.0,137.31,137.24,10.0]
[1720737104399,7.2839,137.29,137.24,10.0]
[1720737104605,7.2839,137.29,137.25,45.0]
[1720737104606,20.0,137.28,137.25,45.0]
[1720737105305,27.2845,137.28,137.25,45.0]
[1720737106301,7.2852,137.27,137.22,20.0]
[1720737106615,20.0,137.26,137.22,20.0]
[1720737107606,20.0,137.27,137.23,45.0]
[1720737108217,19.5,137.27,137.23,45.0]
[1720737108528,7.2857,137.26,137.23,45.0]
[1720737108898,7.2857,137.26,137.22,10.0]
[1720737109300,19.5,137.27,137.22,10.0]
[1720737109301,42.096,137.27,137.22,10.0]
[1720737109521,42.096,137.27,137.22,20.0]
[1720737109820,7.2859,137.25,137.22,10.0]
[1720737110023,7.2859,137.25,137.19,26.6481]
[1720737110492,20.0,137.24,137.19,26.6481]
[1720737111225,20.0,137.26,137.2,45.0]
[1720737111721,27.2855,137.26,137.2,55.0]
[1720737111912,27.2855,137.26,137.21,10.0]
[1720737112612,26.7855,137.26,137.21,10.0]
[1720737113497,26.7855,137.26,137.2,65.0]
[1720737113928,26.7855,137.26,137.2,55.0]
[1720737114115,26.7855,137.26,137.2,65.0]
[1720737115322,26.7855,137.26,137.2,55.0]
[1720737115516,26.7855,137.26,137.2,65.0]
[1720737115728,26.7855,137.26,137.22,10.0]
[1720737116023,19.5,137.26,137.23,45.0]
[1720737116230,30.58529569,137.27,137.23,45.0]
[1720737116539,20.0,137.27,137.23,45.0]
[1720737116739,20.0,137.28,137.23,45.0]
[1720737116912,7.2853,137.27,137.23,45.0]